[Event "New Zealand Rapid Championship"]
[Site "Wellington"]
[Date "2023.01.11"]
[Round "3.13"]
[White "Parfene, Horatiu"]
[Black "Coates, Alex"]
[Result "1-0"]
[TimeControl "25+5"]
[WhiteFideId "1208438"]
[BlackFideId "4311540"]
[WhiteElo "2085"]
[BlackElo "1496"]

1. e4 {[%clk 00:25:08]} {[%emt 00:00:03]} e6 {[%clk 00:25:08]} 2. Nc3 {[%clk
00:24:46]} {[%emt 00:00:27]} d5 {[%clk 00:25:11]} {[%emt 00:00:02]} 3. d3
{[%clk 00:24:49]} {[%emt 00:00:03]} Bb4 {[%clk 00:25:01]} {[%emt 00:00:15]} 4.
Bd2 {[%clk 00:24:51]} {[%emt 00:00:03]} Ne7 {[%clk 00:24:55]} {[%emt 00:00:11]}
5. g3 {[%clk 00:24:20]} {[%emt 00:00:36]} dxe4 {[%clk 00:24:12]} {[%emt
00:00:47]} 6. Nxe4 {[%clk 00:24:20]} {[%emt 00:00:05]} Bxd2+ {[%clk 00:24:13]}
{[%emt 00:00:05]} 7. Qxd2 {[%clk 00:24:21]} {[%emt 00:00:04]} Ng6 {[%clk
00:23:48]} {[%emt 00:00:29]} 8. Bg2 {[%clk 00:24:16]} {[%emt 00:00:10]} Nc6
{[%clk 00:23:38]} {[%emt 00:00:15]} 9. Ne2 {[%clk 00:24:09]} {[%emt 00:00:13]}
Qe7 {[%clk 00:23:07]} {[%emt 00:00:36]} 10. Qc3 {[%clk 00:23:26]} {[%emt
00:00:48]} Qb4 {[%clk 00:22:43]} {[%emt 00:00:29]} 11. Nf6+ {[%clk 00:23:09]}
{[%emt 00:00:21]} Kf8 {[%clk 00:22:21]} {[%emt 00:00:28]} 12. Bxc6 {[%clk
00:22:34]} {[%emt 00:00:40]} Qxc3+ {[%clk 00:22:21]} {[%emt 00:00:06]} 13. Nxc3
{[%clk 00:22:35]} {[%emt 00:00:04]} bxc6 {[%clk 00:22:17]} {[%emt 00:00:09]} 14.
Nfe4 {[%clk 00:22:30]} {[%emt 00:00:09]} Ne7 {[%clk 00:21:30]} {[%emt
00:00:54]} 15. Nc5 {[%clk 00:22:14]} {[%emt 00:00:20]} Nd5 {[%clk 00:21:20]}
{[%emt 00:00:16]} 16. d4 {[%clk 00:21:00]} {[%emt 00:01:19]} Rb8 {[%clk
00:21:14]} {[%emt 00:00:11]} 17. O-O-O {[%clk 00:20:47]} {[%emt 00:00:18]} Ke7
{[%clk 00:20:40]} {[%emt 00:00:38]} 18. N3e4 {[%clk 00:19:08]} {[%emt
00:01:44]} Rd8 {[%clk 00:18:56]} {[%emt 00:01:50]} 19. c3 {[%clk 00:19:08]}
{[%emt 00:00:09]} Rb6 {[%clk 00:17:50]} {[%emt 00:01:09]} 20. Rhe1 {[%clk
00:17:33]} {[%emt 00:01:37]} Bd7 {[%clk 00:16:42]} {[%emt 00:01:13]} 21. f4
{[%clk 00:14:42]} {[%emt 00:02:55]} Kf8 {[%clk 00:15:24]} {[%emt 00:01:23]} 22.
a3 {[%clk 00:14:22]} {[%emt 00:00:26]} Be8 {[%clk 00:15:13]} {[%emt 00:00:16]}
23. Ng5 {[%clk 00:12:57]} {[%emt 00:01:30]} Kg8 {[%clk 00:14:36]} {[%emt
00:00:41]} 24. Nf3 {[%clk 00:12:33]} {[%emt 00:00:28]} Rbb8 {[%clk 00:12:01]}
{[%emt 00:02:42]} 25. Re2 {[%clk 00:12:19]} {[%emt 00:00:19]} Ne7 {[%clk
00:10:46]} {[%emt 00:01:20]} 26. Ne5 {[%clk 00:11:45]} {[%emt 00:00:38]} Kf8
{[%clk 00:08:43]} {[%emt 00:02:08]} 27. Rde1 {[%clk 00:11:38]} {[%emt
00:00:12]} Ng6 {[%clk 00:06:24]} {[%emt 00:02:29]} 28. Nc4 {[%clk 00:09:53]}
{[%emt 00:01:45]} Ne7 {[%clk 00:06:02]} {[%emt 00:00:27]} 29. b4 {[%clk
00:04:56]} {[%emt 00:05:02]} Nd5 {[%clk 00:05:51]} {[%emt 00:00:16]} 30. Kc2
{[%clk 00:04:55]} {[%emt 00:00:06]} Ne7 {[%clk 00:04:53]} {[%emt 00:01:02]} 31.
g4 {[%clk 00:03:48]} {[%emt 00:01:12]} g6 {[%clk 00:04:40]} {[%emt 00:00:19]}
32. h4 {[%clk 00:03:25]} {[%emt 00:00:27]} Bd7 {[%clk 00:04:15]} {[%emt
00:00:30]} 33. Ne5 {[%clk 00:03:15]} {[%emt 00:00:15]} Be8 {[%clk 00:04:12]}
{[%emt 00:00:09]} 34. h5 {[%clk 00:03:02]} {[%emt 00:00:17]} Kg7 {[%clk
00:04:00]} {[%emt 00:00:18]} 35. Rh2 {[%clk 00:02:53]} {[%emt 00:00:14]} h6
{[%clk 00:02:41]} {[%emt 00:01:23]} 36. hxg6 {[%clk 00:02:45]} {[%emt
00:00:12]} Nxg6 {[%clk 00:02:43]} {[%emt 00:00:04]} 37. Nxg6 {[%clk 00:02:42]}
{[%emt 00:00:07]} Kxg6 {[%clk 00:02:39]} {[%emt 00:00:10]} 38. Reh1 {[%clk
00:02:46]} {[%emt 00:00:01]} Kf6 {[%clk 00:02:14]} {[%emt 00:00:29]} 39. Rxh6+
{[%clk 00:02:50]} {[%emt 00:00:02]} Ke7 {[%clk 00:02:18]} {[%emt 00:00:01]} 40.
Rh7 {[%clk 00:02:48]} {[%emt 00:00:07]} Bd7 {[%clk 00:02:19]} {[%emt 00:00:04]}
41. g5 {[%clk 00:02:47]} {[%emt 00:00:10]} Rg8 {[%clk 00:02:04]} {[%emt
00:00:15]} 42. R1h6 {[%clk 00:02:41]} {[%emt 00:00:12]} Bc8 {[%clk 00:01:53]}
{[%emt 00:00:17]} 43. g6 {[%clk 00:02:38]} {[%emt 00:00:07]} a5 {[%clk
00:01:37]} {[%emt 00:00:21]} 44. Rxf7+ {[%clk 00:02:37]} {[%emt 00:00:06]} Kd6
{[%clk 00:01:36]} {[%emt 00:00:05]} 45. g7 {[%clk 00:02:32]} {[%emt 00:00:37]}
1-0

[Event "New Zealand Rapid Championship"]
[Site "Wellington"]
[Date "2023.01.11"]
[Round "3.14"]
[White "Van der Hoorn, Thomas"]
[Black "Ker, Anthony F"]
[Result "0-1"]
[TimeControl "25+5"]
[BlackTitle "IM"]
[WhiteFideId "4314565"]
[BlackFideId "4300084"]
[WhiteElo "1888"]
[BlackElo "2359"]

1. e4 {[%clk 00:25:08]} {[%emt 00:00:02]} c5 {[%clk 00:25:06]} {[%emt
00:00:04]} 2. Nf3 {[%clk 00:25:05]} {[%emt 00:00:08]} g6 {[%clk 00:25:06]}
{[%emt 00:00:05]} 3. d4 {[%clk 00:25:02]} {[%emt 00:00:08]} cxd4 {[%clk
00:25:06]} {[%emt 00:00:05]} 4. Nxd4 {[%clk 00:25:01]} {[%emt 00:00:06]} Nf6
{[%clk 00:25:03]} {[%emt 00:00:09]} 5. Nc3 {[%clk 00:24:49]} {[%emt 00:00:16]}
Nc6 {[%clk 00:24:58]} {[%emt 00:00:10]} 6. Nxc6 {[%clk 00:23:42]} {[%emt
00:01:12]} bxc6 {[%clk 00:24:57]} {[%emt 00:00:06]} 7. e5 {[%clk 00:23:35]}
{[%emt 00:00:12]} Ng8 {[%clk 00:24:57]} {[%emt 00:00:05]} 8. Bc4 {[%clk
00:23:17]} {[%emt 00:00:22]} Bg7 {[%clk 00:21:14]} {[%emt 00:03:48]} 9. Qf3
{[%clk 00:19:16]} {[%emt 00:04:06]} f5 {[%clk 00:21:12]} {[%emt 00:00:07]} 10.
Bf4 {[%clk 00:17:55]} {[%emt 00:01:27]} Qa5 {[%clk 00:20:16]} {[%emt 00:01:01]}
11. O-O-O {[%clk 00:17:28]} {[%emt 00:00:31]} Bxe5 {[%clk 00:15:08]} {[%emt
00:05:14]} 12. Rhe1 {[%clk 00:15:37]} {[%emt 00:01:54]} Bf6 {[%clk 00:10:12]}
{[%emt 00:05:01]} 13. Nd5 {[%clk 00:12:57]} {[%emt 00:02:45]} cxd5 {[%clk
00:08:29]} {[%emt 00:01:51]} 14. Bxd5 {[%clk 00:12:56]} {[%emt 00:00:04]} Qb6
{[%clk 00:08:25]} {[%emt 00:00:08]} 15. c3 {[%clk 00:12:03]} {[%emt 00:00:59]}
Rb8 {[%clk 00:08:19]} {[%emt 00:00:11]} 16. Bxb8 {[%clk 00:12:01]} {[%emt
00:00:07]} Qxb8 {[%clk 00:08:22]} {[%emt 00:00:03]} 17. g4 {[%clk 00:09:47]}
{[%emt 00:02:19]} fxg4 {[%clk 00:06:51]} {[%emt 00:01:35]} 18. Qxg4 {[%clk
00:09:44]} {[%emt 00:00:07]} e6 {[%clk 00:06:36]} {[%emt 00:00:21]} 19. h4
{[%clk 00:08:22]} {[%emt 00:01:25]} Ne7 {[%clk 00:06:28]} {[%emt 00:00:15]} 20.
Be4 {[%clk 00:08:10]} {[%emt 00:00:15]} O-O {[%clk 00:05:44]} {[%emt 00:00:51]}
21. h5 {[%clk 00:07:31]} {[%emt 00:00:44]} g5 {[%clk 00:05:15]} {[%emt
00:00:33]} 22. Kb1 {[%clk 00:06:55]} {[%emt 00:00:42]} Kh8 {[%clk 00:04:39]}
{[%emt 00:00:42]} 23. Ka1 {[%clk 00:06:37]} {[%emt 00:00:22]} Qf4 {[%clk
00:04:32]} {[%emt 00:00:12]} 24. Qe2 {[%clk 00:06:17]} {[%emt 00:00:23]} Bg7
{[%clk 00:04:23]} {[%emt 00:00:16]} 25. Bb1 {[%clk 00:04:39]} {[%emt 00:01:43]}
Qxf2 {[%clk 00:03:49]} {[%emt 00:00:39]} 26. Qd3 {[%clk 00:04:35]} {[%emt
00:00:08]} Nf5 {[%clk 00:03:37]} {[%emt 00:00:18]} 27. Rg1 {[%clk 00:03:11]}
{[%emt 00:01:29]} h6 {[%clk 00:03:37]} {[%emt 00:00:06]} 28. Rdf1 {[%clk
00:02:48]} {[%emt 00:00:27]} Qb6 {[%clk 00:03:30]} {[%emt 00:00:12]} 29. Qd2
{[%clk 00:02:24]} {[%emt 00:00:29]} Ba6 {[%clk 00:03:24]} {[%emt 00:00:12]} 30.
Re1 {[%clk 00:02:09]} {[%emt 00:00:20]} Rb8 {[%clk 00:02:50]} {[%emt 00:00:39]}
31. Rg2 {[%clk 00:01:52]} {[%emt 00:00:22]} Bc4 {[%clk 00:02:34]} {[%emt
00:00:21]} 32. Qxd7 {[%clk 00:01:00]} {[%emt 00:00:59]} Bd5 {[%clk 00:02:27]}
{[%emt 00:00:11]} 33. Rd2 {[%clk 00:00:50]} {[%emt 00:00:15]} Rf8 {[%clk
00:01:57]} {[%emt 00:00:36]} 34. Rf1 {[%clk 00:00:21]} {[%emt 00:00:34]} Bc4
{[%clk 00:01:48]} {[%emt 00:00:14]} 35. Re1 {[%clk 00:00:16]} {[%emt 00:00:09]}
Qa5 {[%clk 00:01:35]} {[%emt 00:00:19]} 36. Rc2 {[%clk 00:00:14]} {[%emt
00:00:07]} Qd5 {[%clk 00:01:28]} {[%emt 00:00:12]} 37. Qxa7 {[%clk 00:00:16]}
{[%emt 00:00:02]} Ra8 {[%clk 00:01:29]} {[%emt 00:00:04]} 38. Qb6 {[%clk
00:00:08]} {[%emt 00:00:24]} Bxa2 {[%clk 00:01:25]} 39. b3 {[%clk 00:00:12]}
Bxb3+ {[%clk 00:01:17]} {[%emt 00:00:12]} 40. Kb2 {[%emt 00:00:21]} 0-1

[Event "New Zealand Rapid Championship"]
[Site "Wellington"]
[ePGN "0.1;DGT LiveChess/2.2.5"]
[Date "2023.01.11"]
[Round "4.1"]
[White "Tang, Hao"]
[Black "Croad, Nicolas"]
[Result "0-1"]
[TimeControl "25+5"]
[BlackTitle "FM"]
[WhiteFideId "4311280"]
[BlackFideId "4300793"]
[WhiteElo "1846"]
[BlackElo "2309"]

1. d4 {[%clk 00:25:09]} Nf6 {[%clk 00:25:08]} {[%emt 00:00:03]} 2. Nf3 {[%clk
00:25:13]} d5 {[%clk 00:25:09]} {[%emt 00:00:05]} 3. c4 {[%clk 00:25:14]}
{[%emt 00:00:02]} e6 {[%clk 00:25:12]} {[%emt 00:00:02]} 4. Nc3 {[%clk
00:25:16]} {[%emt 00:00:04]} Bb4 {[%clk 00:25:15]} {[%emt 00:00:02]} 5. cxd5
{[%clk 00:25:03]} {[%emt 00:00:19]} exd5 {[%clk 00:25:18]} 6. Qa4+ {[%clk
00:25:03]} {[%emt 00:00:06]} Nc6 {[%clk 00:25:21]} {[%emt 00:00:01]} 7. Bg5
{[%clk 00:25:02]} {[%emt 00:00:06]} h6 {[%clk 00:25:15]} {[%emt 00:00:11]} 8.
Bxf6 {[%clk 00:25:04]} {[%emt 00:00:03]} Qxf6 {[%clk 00:25:18]} {[%emt
00:00:02]} 9. e3 {[%clk 00:25:08]} {[%emt 00:00:01]} O-O {[%clk 00:25:04]}
{[%emt 00:00:19]} 10. Be2 {[%clk 00:25:09]} {[%emt 00:00:03]} a6 {[%clk
00:23:05]} {[%emt 00:02:05]} 11. O-O {[%clk 00:25:08]} {[%emt 00:00:06]} Be6
{[%clk 00:22:58]} {[%emt 00:00:11]} 12. Rfc1 {[%clk 00:25:10]} {[%emt
00:00:03]} Bd6 {[%clk 00:22:48]} {[%emt 00:00:16]} 13. a3 {[%clk 00:25:13]}
{[%emt 00:00:02]} Rad8 {[%clk 00:20:01]} {[%emt 00:02:51]} 14. b4 {[%clk
00:24:59]} {[%emt 00:00:19]} Na7 {[%clk 00:19:35]} {[%emt 00:00:31]} 15. Qb3
{[%clk 00:23:57]} {[%emt 00:01:07]} c6 {[%clk 00:19:36]} {[%emt 00:00:05]} 16.
a4 {[%clk 00:23:47]} {[%emt 00:00:15]} Nc8 {[%clk 00:17:18]} {[%emt 00:02:23]}
17. b5 {[%clk 00:23:29]} {[%emt 00:00:23]} axb5 {[%clk 00:16:59]} {[%emt
00:00:24]} 18. axb5 {[%clk 00:23:27]} {[%emt 00:00:07]} Ne7 {[%clk 00:17:02]}
{[%emt 00:00:01]} 19. Na4 {[%clk 00:22:19]} {[%emt 00:01:12]} g5 {[%clk
00:16:41]} {[%emt 00:00:26]} 20. Nc5 {[%clk 00:21:42]} {[%emt 00:00:42]} Bc8
{[%clk 00:16:38]} {[%emt 00:00:08]} 21. Ra7 {[%clk 00:18:43]} {[%emt 00:03:04]}
g4 {[%clk 00:15:37]} {[%emt 00:01:06]} 22. Ne1 {[%clk 00:18:44]} {[%emt
00:00:04]} Bxh2+ {[%clk 00:15:07]} {[%emt 00:00:35]} 23. Kxh2 {[%clk 00:18:42]}
{[%emt 00:00:07]} Qxf2 {[%clk 00:15:10]} {[%emt 00:00:03]} 24. Ra2 {[%clk
00:13:34]} {[%emt 00:05:13]} Nf5 {[%clk 00:14:42]} {[%emt 00:00:33]} 25. e4
{[%clk 00:09:26]} {[%emt 00:04:14]} Qh4+ {[%clk 00:13:13]} {[%emt 00:01:48]} 26.
Kg1 {[%clk 00:09:20]} dxe4 {[%clk 00:12:32]} {[%emt 00:00:44]} 27. Nxe4 {[%clk
00:04:50]} {[%emt 00:04:34]} g3 {[%clk 00:12:34]} {[%emt 00:00:02]} 28. Nxg3
{[%clk 00:04:53]} {[%emt 00:00:02]} Qxd4+ {[%clk 00:11:47]} {[%emt 00:00:57]}
29. Kf1 {[%clk 00:03:45]} {[%emt 00:01:07]} Qf4+ {[%clk 00:11:46]} {[%emt
00:00:06]} 30. Qf3 {[%clk 00:02:25]} {[%emt 00:01:25]} Nxg3+ {[%clk 00:11:33]}
{[%emt 00:00:18]} 31. Kg1 {[%clk 00:01:29]} {[%emt 00:01:01]} Nxe2+ {[%clk
00:11:21]} {[%emt 00:00:18]} 32. Rxe2 {[%clk 00:01:28]} {[%emt 00:00:10]} Qxc1
{[%clk 00:11:22]} 33. Re5 {[%clk 00:01:11]} {[%emt 00:00:21]} Rde8 {[%clk
00:09:23]} {[%emt 00:02:10]} 34. Qg3+ {[%clk 00:00:16]} {[%emt 00:01:02]} Kh8
{[%clk 00:09:26]} 35. Qh4 {[%clk 00:00:16]} Rxe5 {[%clk 00:09:13]} {[%emt
00:00:18]} 36. Qf6+ {[%clk 00:00:19]} {[%emt 00:00:02]} Kg8 {[%clk 00:09:12]}
{[%emt 00:00:07]} 37. Qxe5 {[%clk 00:00:22]} {[%emt 00:00:02]} Qg5 {[%clk
00:09:13]} {[%emt 00:00:04]} 0-1

[Event "New Zealand Rapid Championship"]
[Site "Wellington"]
[Date "2023.01.11"]
[Round "4.2"]
[White "Xie, Felix"]
[Black "Sole, Michael D"]
[Result "1-0"]
[TimeControl "25+5"]
[WhiteTitle "CM"]
[WhiteFideId "4308174"]
[BlackFideId "4309030"]
[WhiteElo "2232"]
[BlackElo "2093"]

1. d4 {[%clk 00:25:08]} Nf6 {[%clk 00:25:04]} {[%emt 00:00:07]} 2. c4 {[%clk
00:25:09]} {[%emt 00:00:03]} e6 {[%clk 00:25:04]} {[%emt 00:00:06]} 3. g3
{[%clk 00:25:11]} {[%emt 00:00:02]} d5 {[%clk 00:25:04]} {[%emt 00:00:05]} 4.
Nf3 {[%clk 00:25:12]} {[%emt 00:00:03]} dxc4 {[%clk 00:25:00]} {[%emt
00:00:12]} 5. Bg2 {[%clk 00:25:15]} Bb4+ {[%clk 00:24:56]} {[%emt 00:00:09]} 6.
Bd2 {[%clk 00:25:15]} {[%emt 00:00:05]} a5 {[%clk 00:24:57]} {[%emt 00:00:07]}
7. Qc2 {[%clk 00:24:36]} {[%emt 00:00:41]} c5 {[%clk 00:24:51]} {[%emt
00:00:11]} 8. dxc5 {[%clk 00:20:52]} {[%emt 00:03:50]} Bxc5 {[%clk 00:24:48]}
{[%emt 00:00:07]} 9. O-O {[%clk 00:20:45]} {[%emt 00:00:12]} Nbd7 {[%clk
00:24:09]} {[%emt 00:00:44]} 10. Qxc4 {[%clk 00:20:29]} {[%emt 00:00:21]} b6
{[%clk 00:24:02]} {[%emt 00:00:13]} 11. Nc3 {[%clk 00:19:50]} {[%emt 00:00:43]}
Ba6 {[%clk 00:23:46]} {[%emt 00:00:21]} 12. Qh4 {[%clk 00:19:50]} {[%emt
00:00:04]} Rc8 {[%clk 00:23:21]} {[%emt 00:00:31]} 13. Bg5 {[%clk 00:19:10]}
{[%emt 00:00:45]} O-O {[%clk 00:21:42]} {[%emt 00:01:44]} 14. Rfd1 {[%clk
00:18:00]} {[%emt 00:01:15]} Qc7 {[%clk 00:21:13]} {[%emt 00:00:34]} 15. Rac1
{[%clk 00:16:43]} {[%emt 00:01:23]} Qa7 {[%clk 00:21:04]} {[%emt 00:00:14]} 16.
e3 {[%clk 00:12:19]} {[%emt 00:04:30]} Rfd8 {[%clk 00:19:48]} {[%emt 00:01:20]}
17. Bf4 {[%clk 00:11:05]} {[%emt 00:01:19]} Nf8 {[%clk 00:18:57]} {[%emt
00:00:54]} 18. Ne5 {[%clk 00:10:47]} {[%emt 00:00:28]} Ng6 {[%clk 00:18:36]}
{[%emt 00:00:21]} 19. Nxg6 {[%clk 00:10:45]} {[%emt 00:00:08]} hxg6 {[%clk
00:18:35]} {[%emt 00:00:10]} 20. Bg5 {[%clk 00:10:36]} {[%emt 00:00:12]} Be7
{[%clk 00:18:20]} {[%emt 00:00:20]} 21. e4 {[%clk 00:10:10]} {[%emt 00:00:30]}
e5 {[%clk 00:15:30]} {[%emt 00:02:54]} 22. Bh3 {[%clk 00:08:52]} {[%emt
00:01:24]} Rxd1+ {[%clk 00:15:05]} {[%emt 00:00:32]} 23. Rxd1 {[%clk 00:08:56]}
Rd8 {[%clk 00:14:56]} {[%emt 00:00:14]} 24. Nd5 {[%clk 00:08:46]} {[%emt
00:00:15]} Nxd5 {[%clk 00:14:41]} {[%emt 00:00:20]} 25. Bxe7 {[%clk 00:07:49]}
{[%emt 00:01:13]} Re8 {[%clk 00:14:03]} {[%emt 00:00:31]} 26. Rxd5 {[%clk
00:03:14]} {[%emt 00:04:41]} Qxe7 {[%clk 00:14:01]} {[%emt 00:00:06]} 27. Qxe7
{[%clk 00:03:18]} {[%emt 00:00:01]} Rxe7 {[%clk 00:14:04]} {[%emt 00:00:02]} 28.
Bf1 {[%clk 00:03:21]} {[%emt 00:00:02]} Bb7 {[%clk 00:12:45]} {[%emt 00:01:23]}
29. Rd8+ {[%clk 00:03:26]} Kh7 {[%clk 00:12:48]} {[%emt 00:00:03]} 30. Bd3
{[%clk 00:03:14]} {[%emt 00:00:17]} Bc6 {[%clk 00:12:28]} {[%emt 00:00:24]} 31.
Rc8 {[%clk 00:02:58]} {[%emt 00:00:22]} Bb7 {[%clk 00:12:31]} {[%emt 00:00:02]}
32. Rd8 {[%clk 00:02:54]} {[%emt 00:00:09]} Bc6 {[%clk 00:12:32]} {[%emt
00:00:03]} 33. Rb8 {[%clk 00:02:42]} {[%emt 00:00:19]} Bb7 {[%clk 00:12:34]} 34.
Kf1 {[%clk 00:02:39]} {[%emt 00:00:09]} Rd7 {[%clk 00:11:37]} {[%emt 00:01:02]}
35. Ke2 {[%clk 00:02:43]} {[%emt 00:00:01]} g5 {[%clk 00:11:21]} {[%emt
00:00:20]} 36. Re8 {[%clk 00:02:47]} {[%emt 00:00:02]} f6 {[%clk 00:11:11]}
{[%emt 00:00:16]} 37. Re6 {[%clk 00:02:51]} Rd4 {[%clk 00:10:59]} {[%emt
00:00:16]} 38. Ke3 {[%clk 00:02:13]} {[%emt 00:00:43]} Rb4 {[%clk 00:10:58]}
{[%emt 00:00:06]} 39. b3 {[%clk 00:02:18]} Bc8 {[%clk 00:10:43]} {[%emt
00:00:20]} 40. Rc6 {[%clk 00:02:18]} {[%emt 00:00:04]} Bd7 {[%clk 00:09:48]}
{[%emt 00:01:00]} 41. Rd6 {[%clk 00:02:19]} {[%emt 00:00:02]} Be8 {[%clk
00:08:36]} {[%emt 00:01:20]} 42. Bc4 {[%clk 00:02:19]} {[%emt 00:00:09]} b5
{[%clk 00:08:18]} {[%emt 00:00:19]} 43. a3 {[%clk 00:02:01]} {[%emt 00:00:24]}
bxc4 {[%clk 00:07:30]} {[%emt 00:00:52]} 44. axb4 {[%clk 00:02:05]} {[%emt
00:00:01]} cxb3 {[%clk 00:07:26]} {[%emt 00:00:08]} 45. bxa5 {[%clk 00:01:54]}
{[%emt 00:00:16]} Bb5 {[%clk 00:06:43]} {[%emt 00:00:50]} 46. Rb6 {[%clk
00:01:58]} Bc4 {[%clk 00:06:41]} {[%emt 00:00:07]} 47. a6 {[%clk 00:01:58]}
{[%emt 00:00:05]} b2 {[%clk 00:06:37]} {[%emt 00:00:09]} 48. a7 {[%clk
00:01:52]} {[%emt 00:00:11]} 1-0

[Event "New Zealand Rapid Championship"]
[Site "Wellington"]
[Date "2023.01.11"]
[Round "4.3"]
[White "Park-Tamati, Philli"]
[Black "Cummings, Nick"]
[Result "1-0"]
[TimeControl "25+5"]
[WhiteFideId "4309090"]
[BlackFideId "4301218"]
[WhiteElo "1861"]
[BlackElo "2038"]

1. d4 {[%clk 00:25:08]} {[%emt 00:00:02]} d5 {[%clk 00:25:06]} {[%emt
00:00:04]} 2. Bf4 {[%clk 00:25:12]} Nf6 {[%clk 00:25:05]} {[%emt 00:00:05]} 3.
e3 {[%clk 00:25:16]} e6 {[%clk 00:25:09]} {[%emt 00:00:04]} 4. Nd2 {[%clk
00:25:20]} Bd6 {[%clk 00:25:11]} {[%emt 00:00:02]} 5. Bg3 {[%clk 00:25:24]} c5
{[%clk 00:25:12]} {[%emt 00:00:04]} 6. c3 {[%clk 00:24:51]} {[%emt 00:00:38]}
Nc6 {[%clk 00:25:07]} {[%emt 00:00:10]} 7. Ngf3 {[%clk 00:24:47]} {[%emt
00:00:09]} O-O {[%clk 00:24:39]} {[%emt 00:00:34]} 8. Bd3 {[%clk 00:24:49]}
{[%emt 00:00:04]} b6 {[%clk 00:23:39]} {[%emt 00:01:04]} 9. e4 {[%clk
00:24:49]} {[%emt 00:00:04]} dxe4 {[%clk 00:23:13]} {[%emt 00:00:32]} 10. Nxe4
{[%clk 00:24:53]} {[%emt 00:00:02]} Nxe4 {[%clk 00:22:14]} {[%emt 00:01:03]} 11.
Bxe4 {[%clk 00:24:57]} {[%emt 00:00:01]} Bb7 {[%clk 00:21:56]} {[%emt
00:00:22]} 12. dxc5 {[%clk 00:25:00]} {[%emt 00:00:02]} Bxc5 {[%clk 00:21:44]}
{[%emt 00:00:17]} 13. Qa4 {[%clk 00:25:03]} {[%emt 00:00:02]} Qe8 {[%clk
00:16:20]} {[%emt 00:05:29]} 14. Bxh7+ {[%clk 00:24:26]} {[%emt 00:00:42]} Kxh7
{[%clk 00:16:03]} {[%emt 00:00:23]} 15. Qh4+ {[%clk 00:24:30]} {[%emt
00:00:02]} 1-0